[Event "FIDE World Rapid Chess Championship 2021"]
[White "Wieczorek, Oskar"]
[Black "Klekowski, Maciej"]
[WhiteFideId "1133950"]
[BlackFideId "1132717"]
[WhiteElo "2367"]
[BlackElo "2528"]
[Result "0-1"]
[Round "07"]
[TimeControl "900+10"]
[Date "2021.12.27"]
[WhiteClock "0:00:24"]
[BlackClock "0:05:28"]

1. e4 {[%clk 0:15:00]}  c5 {[%clk 0:15:00]} 2. Nf3 {[%clk 0:15:00]}  Nc6 {[%clk 0:15:00]} 3. d4 {[%clk 0:15:00]}  cxd4 {[%clk 0:15:00]} 4. Nxd4 {[%clk 0:15:00]}  e6 {[%clk 0:15:00]} 5. Nc3 {[%clk 0:15:00]}  a6 {[%clk 0:15:00]} 6. Qd3 {[%clk 0:15:00]}  d6 {[%clk 0:15:52]} 7. Nxc6 {[%clk 0:15:43]}  bxc6 {[%clk 0:15:52]} 8. Qg3 {[%clk 0:15:43]}  h5 {[%clk 0:15:52]} 9. h4 {[%clk 0:15:43]}  Qb6 {[%clk 0:13:55]} 10. Be2 {[%clk 0:14:54]}  e5 {[%clk 0:13:40]} 11. O-O {[%clk 0:13:02]}  Nf6 {[%clk 0:13:40]} 12. Bg5 {[%clk 0:11:45]}  Be6 {[%clk 0:12:41]} 13. Qd3 {[%clk 0:09:31]}  a5 {[%clk 0:11:24]} 14. Na4 {[%clk 0:06:38]}  Qb4 {[%clk 0:11:24]} 15. b3 {[%clk 0:06:38]}  Qxe4 {[%clk 0:11:25]} 16. Bf3 {[%clk 0:04:33]}  Qxd3 {[%clk 0:11:25]} 17. Bxc6+ {[%clk 0:04:33]}  Bd7 {[%clk 0:11:25]} 18. Bxd7+ {[%clk 0:04:33]}  Kxd7 {[%clk 0:11:25]} 19. cxd3 {[%clk 0:04:33]}  Nd5 {[%clk 0:11:25]} 20. Rac1 {[%clk 0:03:13]}  f6 {[%clk 0:05:00]} 21. Bd2 {[%clk 0:03:13]}  Be7 {[%clk 0:05:00]} 22. Rc4 {[%clk 0:03:13]}  f5 {[%clk 0:05:00]} 23. Rfc1 {[%clk 0:03:13]}  f4 {[%clk 0:05:00]} 24. g3 {[%clk 0:01:18]}  g5 {[%clk 0:05:22]} 25. hxg5 {[%clk 0:01:18]}  fxg3 {[%clk 0:05:22]} 26. fxg3 {[%clk 0:01:18]}  Rag8 {[%clk 0:05:22]} 27. Kh2 {[%clk 0:01:18]}  Bxg5 {[%clk 0:05:22]} 28. Bxg5 {[%clk 0:01:18]}  Rxg5 {[%clk 0:05:22]} 29. Re1 {[%clk 0:01:18]}  Rhg8 {[%clk 0:05:22]} 30. d4 {[%clk 0:01:18]}  e4 {[%clk 0:05:28]} 31. Nc3 {[%clk 0:00:24]}  Nf6 {[%clk 0:05:28]} 32. Ne2 {[%clk 0:00:24]}  h4 {[%clk 0:05:28]} 33. Rc3 {[%clk 0:00:24]}  Nd5 {[%clk 0:05:28]} 0-1


[Site "http://www.Chess.com"]

[Event "FIDE World Rapid Chess Championship 2021"]
[White "Lima, Darcy"]
[Black "Dziuba, Marcin"]
[WhiteFideId "2100045"]
[BlackFideId "1112953"]
[WhiteElo "2505"]
[BlackElo "2424"]
[Result "0-1"]
[Round "07"]
[TimeControl "900+10"]
[Date "2021.12.27"]
[WhiteClock "0:00:27"]
[BlackClock "0:00:21"]

1. d4 {[%clk 0:15:00]}  Nf6 {[%clk 0:15:00]} 2. c4 {[%clk 0:15:00]}  g6 {[%clk 0:15:00]} 3. Nc3 {[%clk 0:15:00]}  Bg7 {[%clk 0:15:00]} 4. e4 {[%clk 0:15:00]}  d6 {[%clk 0:15:00]} 5. Be2 {[%clk 0:15:00]}  O-O {[%clk 0:15:28]} 6. Be3 {[%clk 0:15:48]}  Nc6 {[%clk 0:15:28]} 7. d5 {[%clk 0:15:56]}  Ne5 {[%clk 0:13:22]} 8. h3 {[%clk 0:15:56]}  e6 {[%clk 0:13:24]} 9. Nf3 {[%clk 0:14:13]}  Nxf3+ {[%clk 0:13:24]} 10. Bxf3 {[%clk 0:14:13]}  Nd7 {[%clk 0:13:24]} 11. O-O {[%clk 0:14:13]}  a5 {[%clk 0:10:19]} 12. Qd2 {[%clk 0:13:21]}  e5 {[%clk 0:09:24]} 13. g3 {[%clk 0:10:16]}  Nb6 {[%clk 0:07:35]} 14. Bxb6 {[%clk 0:10:16]}  cxb6 {[%clk 0:07:35]} 15. h4 {[%clk 0:09:33]}  f5 {[%clk 0:06:19]} 16. Kg2 {[%clk 0:06:46]}  Bd7 {[%clk 0:05:58]} 17. Rh1 {[%clk 0:06:46]}  h5 {[%clk 0:05:58]} 18. exf5 {[%clk 0:06:27]}  gxf5 {[%clk 0:04:19]} 19. Bxh5 {[%clk 0:06:27]}  Kh7 {[%clk 0:04:19]} 20. Rae1 {[%clk 0:06:27]}  Bh6 {[%clk 0:04:19]} 21. Qd1 {[%clk 0:04:23]}  a4 {[%clk 0:04:12]} 22. Nb5 {[%clk 0:04:08]}  Qf6 {[%clk 0:04:12]} 23. Qd3 {[%clk 0:03:17]}  Rac8 {[%clk 0:00:44]} 24. b3 {[%clk 0:03:17]}  e4 {[%clk 0:00:44]} 25. Qd4 {[%clk 0:03:17]}  Bc6 {[%clk 0:00:44]} 26. Qxf6 {[%clk 0:03:17]}  Bxb5 {[%clk 0:00:44]} 27. cxb5 {[%clk 0:03:17]}  Rxf6 {[%clk 0:00:44]} 28. g4 {[%clk 0:01:08]}  a3 {[%clk 0:01:08]} 29. Rxe4 {[%clk 0:01:08]}  fxg4 {[%clk 0:01:08]} 30. Rf1 {[%clk 0:01:08]}  Rc2 {[%clk 0:01:08]} 31. Ra4 {[%clk 0:01:08]}  Rxa2 {[%clk 0:01:04]} 32. Kg3 {[%clk 0:01:08]}  Be3 {[%clk 0:01:04]} 33. Kxg4 {[%clk 0:01:08]}  Bxf2 {[%clk 0:01:04]} 34. Rh1 {[%clk 0:00:27]}  Bxh4 {[%clk 0:00:21]} 0-1


[Site "http://www.Chess.com"]

[Event "FIDE World Rapid Chess Championship 2021"]
[White "Kanarek, Marcel"]
[Black "Janik, Igor"]
[WhiteFideId "1126822"]
[BlackFideId "1159259"]
[WhiteElo "2296"]
[BlackElo "2462"]
[Result "0-1"]
[Round "07"]
[TimeControl "900+10"]
[Date "2021.12.27"]
[WhiteClock "0:00:07"]
[BlackClock "0:01:18"]

1. d4 {[%clk 0:15:00]}  Nf6 {[%clk 0:15:00]} 2. Bf4 {[%clk 0:15:00]}  d6 {[%clk 0:15:00]} 3. Nc3 {[%clk 0:15:00]}  Bf5 {[%clk 0:14:40]} 4. g3 {[%clk 0:15:12]}  Nbd7 {[%clk 0:14:40]} 5. Nf3 {[%clk 0:13:38]}  h6 {[%clk 0:14:40]} 6. Bg2 {[%clk 0:13:38]}  c6 {[%clk 0:14:40]} 7. O-O {[%clk 0:11:30]}  Qc7 {[%clk 0:13:29]} 8. Re1 {[%clk 0:11:30]}  e5 {[%clk 0:13:29]} 9. e4 {[%clk 0:11:30]}  Bh7 {[%clk 0:13:29]} 10. Bc1 {[%clk 0:09:20]}  Be7 {[%clk 0:13:55]} 11. h3 {[%clk 0:09:20]}  O-O {[%clk 0:13:55]} 12. b3 {[%clk 0:09:20]}  Rfe8 {[%clk 0:13:55]} 13. Bb2 {[%clk 0:09:20]}  Bf8 {[%clk 0:13:55]} 14. dxe5 {[%clk 0:07:24]}  dxe5 {[%clk 0:14:15]} 15. Nh4 {[%clk 0:07:24]}  Rad8 {[%clk 0:14:15]} 16. Qc1 {[%clk 0:06:41]}  Nc5 {[%clk 0:14:01]} 17. a4 {[%clk 0:06:41]}  a5 {[%clk 0:14:01]} 18. Nf5 {[%clk 0:06:41]}  Ne6 {[%clk 0:13:17]} 19. Ne2 {[%clk 0:04:17]}  Bc5 {[%clk 0:13:17]} 20. Ba3 {[%clk 0:04:17]}  Qb6 {[%clk 0:13:17]} 21. Bxc5 {[%clk 0:04:17]}  Qxc5 {[%clk 0:13:17]} 22. c3 {[%clk 0:03:18]}  Rd7 {[%clk 0:11:31]} 23. Qc2 {[%clk 0:03:18]}  Red8 {[%clk 0:09:30]} 24. Rad1 {[%clk 0:03:18]}  Bxf5 {[%clk 0:09:30]} 25. exf5 {[%clk 0:01:44]}  Nd4 {[%clk 0:09:12]} 26. Nxd4 {[%clk 0:01:44]}  exd4 {[%clk 0:09:12]} 27. Rd3 {[%clk 0:01:44]}  dxc3 {[%clk 0:09:12]} 28. Rxc3 {[%clk 0:01:44]}  Qb4 {[%clk 0:09:12]} 29. Rce3 {[%clk 0:01:44]}  Rd2 {[%clk 0:09:12]} 30. Qc4 {[%clk 0:01:44]}  Qxc4 {[%clk 0:08:32]} 31. bxc4 {[%clk 0:00:28]}  Rd1 {[%clk 0:08:32]} 32. Rxd1 {[%clk 0:00:28]}  Rxd1+ {[%clk 0:08:32]} 33. Kh2 {[%clk 0:00:28]}  Kf8 {[%clk 0:06:00]} 34. Rb3 {[%clk 0:00:43]}  Rd7 {[%clk 0:06:00]} 35. g4 {[%clk 0:00:43]}  Ke7 {[%clk 0:06:00]} 36. c5 {[%clk 0:00:43]}  Kd8 {[%clk 0:06:00]} 37. f4 {[%clk 0:00:43]}  Kc7 {[%clk 0:06:00]} 38. g5 {[%clk 0:00:43]}  Nh5 {[%clk 0:06:00]} 39. f6 {[%clk 0:00:32]}  hxg5 {[%clk 0:05:41]} 40. fxg7 {[%clk 0:00:32]}  Nxg7 {[%clk 0:05:41]} 41. fxg5 {[%clk 0:00:32]}  Ne6 {[%clk 0:05:41]} 42. h4 {[%clk 0:00:32]}  Nxc5 {[%clk 0:05:41]} 43. Rf3 {[%clk 0:00:32]}  b5 {[%clk 0:05:41]} 44. Bh3 {[%clk 0:00:32]}  Re7 {[%clk 0:05:41]} 45. h5 {[%clk 0:00:32]}  Ne4 {[%clk 0:05:41]} 46. axb5 {[%clk 0:00:32]}  cxb5 {[%clk 0:05:08]} 47. Rf5 {[%clk 0:00:27]}  Nd6 {[%clk 0:05:08]} 48. Rc5+ {[%clk 0:00:27]}  Kb6 {[%clk 0:05:08]} 49. Rd5 {[%clk 0:00:27]}  Re2+ {[%clk 0:05:08]} 50. Bg2 {[%clk 0:00:27]}  Nc4 {[%clk 0:05:08]} 51. h6 {[%clk 0:00:27]}  Ne3 {[%clk 0:03:15]} 52. h7 {[%clk 0:00:22]}  Rxg2+ {[%clk 0:03:15]} 53. Kh1 {[%clk 0:00:22]}  Nxd5 {[%clk 0:03:15]} 54. h8=Q {[%clk 0:00:22]}  Rd2 {[%clk 0:03:15]} 55. Qd8+ {[%clk 0:00:22]}  Kc5 {[%clk 0:03:15]} 56. Qf8+ {[%clk 0:00:22]}  Kc4 {[%clk 0:03:15]} 57. Qxf7 {[%clk 0:00:22]}  a4 {[%clk 0:02:18]} 58. g6 {[%clk 0:00:21]}  a3 {[%clk 0:02:18]} 59. g7 {[%clk 0:00:21]}  Rd1+ {[%clk 0:02:18]} 60. Kh2 {[%clk 0:00:21]}  a2 {[%clk 0:02:18]} 61. g8=Q {[%clk 0:00:21]}  Rd2+ {[%clk 0:02:18]} 62. Kg3 {[%clk 0:00:21]}  Rd3+ {[%clk 0:02:18]} 63. Kh2 {[%clk 0:00:21]}  a1=Q {[%clk 0:02:18]} 64. Qg4+ {[%clk 0:00:21]}  Kb3 {[%clk 0:02:18]} 65. Qe2 {[%clk 0:00:00]}  Qd4 {[%clk 0:01:51]} 66. Qfh5 {[%clk 0:00:00]}  Rd2 {[%clk 0:01:51]} 67. Qf3+ {[%clk 0:00:00]}  Kb2 {[%clk 0:01:51]} 68. Kh1 {[%clk 0:00:00]}  Nc3 {[%clk 0:01:51]} 69. Qee3 {[%clk 0:00:00]}  Qh8+ {[%clk 0:01:51]} 70. Qh3 {[%clk 0:00:00]}  Qa8+ {[%clk 0:01:51]} 71. Kg1 {[%clk 0:00:10]}  Qa1+ {[%clk 0:00:35]} 72. Qf1 {[%clk 0:00:10]}  Qxf1+ {[%clk 0:00:35]} 73. Kxf1 {[%clk 0:00:10]}  Rd1+ {[%clk 0:00:35]} 74. Kg2 {[%clk 0:00:10]}  b4 {[%clk 0:00:35]} 75. Qf2+ {[%clk 0:00:10]}  Kb3 {[%clk 0:00:35]} 76. Kh3 {[%clk 0:00:10]}  Rd3+ {[%clk 0:00:35]} 77. Kh4 {[%clk 0:00:10]}  Kc4 {[%clk 0:00:35]} 78. Kh5 {[%clk 0:00:10]}  b3 {[%clk 0:00:35]} 79. Qg2 {[%clk 0:00:10]}  Na4 {[%clk 0:00:35]} 80. Qe4+ {[%clk 0:00:10]}  Rd4 {[%clk 0:00:35]} 81. Qe2+ {[%clk 0:00:10]}  Kb4 {[%clk 0:00:59]} 82. Qe1+ {[%clk 0:00:10]}  Nc3 {[%clk 0:00:59]} 83. Qe7+ {[%clk 0:00:10]}  Kc4 {[%clk 0:00:59]} 84. Qb7 {[%clk 0:00:10]}  Rd5+ {[%clk 0:00:59]} 85. Kh6 {[%clk 0:00:10]}  Nb5 {[%clk 0:00:59]} 86. Qc6+ {[%clk 0:00:10]}  Rc5 {[%clk 0:00:59]} 87. Qe6+ {[%clk 0:00:10]}  Kb4 {[%clk 0:00:59]} 88. Qe1+ {[%clk 0:00:10]}  Nc3 {[%clk 0:00:59]} 89. Qf2 {[%clk 0:00:10]}  Rc6+ {[%clk 0:00:59]} 90. Kh7 {[%clk 0:00:10]}  Na4 {[%clk 0:00:59]} 91. Qd4+ {[%clk 0:00:10]}  Rc4 {[%clk 0:00:59]} 92. Qd6+ {[%clk 0:00:10]}  Nc5 {[%clk 0:01:34]} 93. Qf6 {[%clk 0:00:22]}  Rc2 {[%clk 0:01:34]} 94. Qd4+ {[%clk 0:00:22]}  Kb5 {[%clk 0:01:34]} 95. Qd1 {[%clk 0:00:22]}  Rh2+ {[%clk 0:01:34]} 96. Kg8 {[%clk 0:00:22]}  Rg2+ {[%clk 0:01:34]} 97. Kh8 {[%clk 0:00:22]}  Rh2+ {[%clk 0:01:34]} 98. Kg8 {[%clk 0:00:22]}  b2 {[%clk 0:01:34]} 99. Qf1+ {[%clk 0:00:22]}  Kb6 {[%clk 0:01:34]} 100. Qf6+ {[%clk 0:00:22]}  Kb5 {[%clk 0:01:34]} 101. Qf1+ {[%clk 0:00:42]}  Ka5 {[%clk 0:01:07]} 102. Qg1 {[%clk 0:00:42]}  Rc2 {[%clk 0:01:07]} 103. Qb1 {[%clk 0:00:42]}  Rd2 {[%clk 0:01:07]} 104. Qe1 {[%clk 0:00:42]}  Nb3 {[%clk 0:01:07]} 105. Qe5+ {[%clk 0:00:42]}  Kb4 {[%clk 0:01:07]} 106. Qb8+ {[%clk 0:00:42]}  Kc4 {[%clk 0:01:07]} 107. Qf4+ {[%clk 0:00:42]}  Rd4 {[%clk 0:01:07]} 108. Qf1+ {[%clk 0:00:42]}  Kb4 {[%clk 0:01:07]} 109. Qf8+ {[%clk 0:00:42]}  Nc5 {[%clk 0:01:24]} 110. Kh8 {[%clk 0:00:14]}  Kc4 {[%clk 0:01:24]} 111. Qf1+ {[%clk 0:00:14]}  Nd3 {[%clk 0:01:24]} 112. Qf7+ {[%clk 0:00:14]}  Kc3 {[%clk 0:01:24]} 113. Qc7+ {[%clk 0:00:14]}  Rc4 {[%clk 0:01:24]} 114. Qa5+ {[%clk 0:00:14]}  Kb3 {[%clk 0:01:24]} 115. Qb6+ {[%clk 0:00:14]}  Kc2 {[%clk 0:01:24]} 116. Qe6 {[%clk 0:00:14]}  Rh4+ {[%clk 0:01:24]} 117. Kg8 {[%clk 0:00:14]}  b1=Q {[%clk 0:01:24]} 118. Qc6+ {[%clk 0:00:07]}  Kd2 {[%clk 0:01:18]} 119. Qg2+ {[%clk 0:00:07]}  Kc3 {[%clk 0:01:18]} 0-1


[Site "http://www.Chess.com"]

[Event "FIDE World Rapid Chess Championship 2021"]
[White "Faizrakhmanov, Ramil"]
[Black "Dragnev, Valentin"]
[WhiteFideId "24103209"]
[BlackFideId "1634852"]
[WhiteElo "2461"]
[BlackElo "2409"]
[Result "1-0"]
[Round "07"]
[TimeControl "900+10"]
[Date "2021.12.27"]
[WhiteClock "0:01:37"]
[BlackClock "0:00:52"]

1. d4 {[%clk 0:15:00]}  Nf6 {[%clk 0:15:00]} 2. c4 {[%clk 0:15:00]}  g6 {[%clk 0:15:00]} 3. Nc3 {[%clk 0:15:00]}  d5 {[%clk 0:15:00]} 4. cxd5 {[%clk 0:15:00]}  Nxd5 {[%clk 0:15:00]} 5. e4 {[%clk 0:15:00]}  Nxc3 {[%clk 0:15:00]} 6. bxc3 {[%clk 0:15:00]}  Bg7 {[%clk 0:15:00]} 7. Nf3 {[%clk 0:15:00]}  c5 {[%clk 0:15:00]} 8. Bb5+ {[%clk 0:15:00]}  Nc6 {[%clk 0:15:00]} 9. Rb1 {[%clk 0:16:11]}  O-O {[%clk 0:15:42]} 10. d5 {[%clk 0:16:11]}  a6 {[%clk 0:15:42]} 11. Be2 {[%clk 0:16:11]}  Ne5 {[%clk 0:15:42]} 12. O-O {[%clk 0:16:11]}  Nxf3+ {[%clk 0:15:49]} 13. Bxf3 {[%clk 0:15:33]}  Bxc3 {[%clk 0:15:49]} 14. Be3 {[%clk 0:15:33]}  Qa5 {[%clk 0:15:49]} 15. h4 {[%clk 0:14:28]}  Be5 {[%clk 0:13:05]} 16. Qc2 {[%clk 0:13:24]}  Bd4 {[%clk 0:13:05]} 17. Bxd4 {[%clk 0:13:24]}  cxd4 {[%clk 0:13:05]} 18. Rfc1 {[%clk 0:12:00]}  Bd7 {[%clk 0:07:59]} 19. Qc7 {[%clk 0:12:00]}  Qxc7 {[%clk 0:07:42]} 20. Rxc7 {[%clk 0:09:57]}  Bb5 {[%clk 0:07:42]} 21. Rxe7 {[%clk 0:09:57]}  Rac8 {[%clk 0:07:42]} 22. Rd1 {[%clk 0:09:57]}  d3 {[%clk 0:07:42]} 23. e5 {[%clk 0:09:42]}  Rfe8 {[%clk 0:06:26]} 24. Rxe8+ {[%clk 0:08:22]}  Rxe8 {[%clk 0:06:07]} 25. Re1 {[%clk 0:03:45]}  d2 {[%clk 0:06:15]} 26. Rd1 {[%clk 0:03:45]}  Rxe5 {[%clk 0:06:15]} 27. Rxd2 {[%clk 0:03:45]}  Bd7 {[%clk 0:04:30]} 28. Rc2 {[%clk 0:03:11]}  Kf8 {[%clk 0:04:30]} 29. Rc7 {[%clk 0:03:11]}  Ke7 {[%clk 0:04:30]} 30. Rxb7 {[%clk 0:03:11]}  Re1+ {[%clk 0:04:30]} 31. Kh2 {[%clk 0:03:11]}  Ra1 {[%clk 0:04:30]} 32. d6+ {[%clk 0:03:04]}  Kxd6 {[%clk 0:03:57]} 33. Rb6+ {[%clk 0:03:04]}  Kc5 {[%clk 0:02:11]} 34. Rxa6 {[%clk 0:01:14]}  Be6 {[%clk 0:02:11]} 35. a4 {[%clk 0:01:14]}  Kb4 {[%clk 0:02:11]} 36. Bc6 {[%clk 0:01:14]}  Kc5 {[%clk 0:02:11]} 37. Be8 {[%clk 0:00:41]}  h6 {[%clk 0:01:12]} 38. Ra7 {[%clk 0:00:41]}  Kd6 {[%clk 0:01:12]} 39. Bxf7 {[%clk 0:00:41]}  Bxf7 {[%clk 0:01:12]} 40. Rxf7 {[%clk 0:00:41]}  Rxa4 {[%clk 0:01:12]} 41. Rf6+ {[%clk 0:00:41]}  Ke5 {[%clk 0:01:12]} 42. Rxg6 {[%clk 0:00:41]}  Rxh4+ {[%clk 0:01:12]} 43. Kg3 {[%clk 0:00:41]}  Rh1 {[%clk 0:01:12]} 44. Kg4 {[%clk 0:00:41]}  h5+ {[%clk 0:01:22]} 45. Kg5 {[%clk 0:00:37]}  Rh2 {[%clk 0:01:22]} 46. f4+ {[%clk 0:00:37]}  Ke4 {[%clk 0:01:22]} 47. Re6+ {[%clk 0:00:37]}  Kd5 {[%clk 0:01:22]} 48. f5 {[%clk 0:00:37]}  h4 {[%clk 0:01:22]} 49. Re1 {[%clk 0:00:37]}  Rxg2+ {[%clk 0:01:22]} 50. Kxh4 {[%clk 0:00:37]}  Kd6 {[%clk 0:01:22]} 51. Kh5 {[%clk 0:00:37]}  Kd7 {[%clk 0:01:22]} 52. f6 {[%clk 0:00:37]}  Rg3 {[%clk 0:01:22]} 53. f7 {[%clk 0:00:37]}  Rf3 {[%clk 0:01:22]} 54. Kg6 {[%clk 0:00:37]}  Rg3+ {[%clk 0:00:52]} 55. Kf6 {[%clk 0:01:37]}  Rf3+ {[%clk 0:00:52]} 56. Kg7 {[%clk 0:01:37]}  Rg3+ {[%clk 0:00:52]} 57. Kf8 {[%clk 0:01:37]}  Ra3 {[%clk 0:00:52]} 58. Rg1 {[%clk 0:01:37]} 1-0


[Site "http://www.Chess.com"]

[Event "FIDE World Rapid Chess Championship 2021"]
[White "Gumularz, Szymon"]
[Black "Jakubowski, Krzysztof"]
[WhiteFideId "1188062"]
[BlackFideId "1112848"]
[WhiteElo "2452"]
[BlackElo "2399"]
[Result "1-0"]
[Round "07"]
[TimeControl "900+10"]
[Date "2021.12.27"]
[WhiteClock "0:00:47"]
[BlackClock "0:00:11"]

1. e4 {[%clk 0:15:00]}  c5 {[%clk 0:15:00]} 2. Nf3 {[%clk 0:15:00]}  d6 {[%clk 0:15:00]} 3. Bb5+ {[%clk 0:15:00]}  Nd7 {[%clk 0:15:00]} 4. a4 {[%clk 0:15:00]}  Nf6 {[%clk 0:15:00]} 5. Nc3 {[%clk 0:15:00]}  e6 {[%clk 0:14:47]} 6. O-O {[%clk 0:15:54]}  Be7 {[%clk 0:14:47]} 7. d4 {[%clk 0:15:54]}  cxd4 {[%clk 0:14:47]} 8. Qxd4 {[%clk 0:15:54]}  O-O {[%clk 0:14:47]} 9. Rd1 {[%clk 0:15:54]}  a6 {[%clk 0:14:47]} 10. Be2 {[%clk 0:15:54]}  Qc7 {[%clk 0:14:39]} 11. Be3 {[%clk 0:16:03]}  b6 {[%clk 0:14:39]} 12. Nd2 {[%clk 0:16:03]}  Bb7 {[%clk 0:14:39]} 13. Nc4 {[%clk 0:16:03]}  d5 {[%clk 0:11:54]} 14. exd5 {[%clk 0:15:12]}  Bc5 {[%clk 0:11:54]} 15. Bf4 {[%clk 0:15:14]}  Qc8 {[%clk 0:06:13]} 16. Qd3 {[%clk 0:07:05]}  exd5 {[%clk 0:05:44]} 17. Nd6 {[%clk 0:07:05]}  Bxd6 {[%clk 0:05:44]} 18. Bxd6 {[%clk 0:07:05]}  Re8 {[%clk 0:05:44]} 19. Bf3 {[%clk 0:06:00]}  Ne4 {[%clk 0:05:44]} 20. Bxe4 {[%clk 0:06:00]}  dxe4 {[%clk 0:05:44]} 21. Qg3 {[%clk 0:06:00]}  e3 {[%clk 0:05:44]} 22. fxe3 {[%clk 0:03:51]}  Re6 {[%clk 0:05:13]} 23. Rd4 {[%clk 0:03:51]}  Rg6 {[%clk 0:05:13]} 24. Rg4 {[%clk 0:03:51]}  Nf6 {[%clk 0:05:13]} 25. Rxg6 {[%clk 0:03:51]}  hxg6 {[%clk 0:05:13]} 26. Be5 {[%clk 0:03:51]}  Qe6 {[%clk 0:03:54]} 27. Bd4 {[%clk 0:03:47]}  Rd8 {[%clk 0:03:54]} 28. Rf1 {[%clk 0:03:47]}  Ne4 {[%clk 0:03:54]} 29. Nxe4 {[%clk 0:03:41]}  Bxe4 {[%clk 0:01:48]} 30. Rf2 {[%clk 0:03:41]}  b5 {[%clk 0:01:48]} 31. axb5 {[%clk 0:01:38]}  axb5 {[%clk 0:02:01]} 32. h3 {[%clk 0:01:38]}  Rd5 {[%clk 0:02:01]} 33. Qb8+ {[%clk 0:01:38]}  Kh7 {[%clk 0:02:01]} 34. Qf4 {[%clk 0:01:38]}  f6 {[%clk 0:02:01]} 35. Qc7 {[%clk 0:01:38]}  Rf5 {[%clk 0:02:01]} 36. Qg3 {[%clk 0:01:38]}  Rg5 {[%clk 0:01:30]} 37. Qh4+ {[%clk 0:00:18]}  Kg8 {[%clk 0:01:30]} 38. Kh2 {[%clk 0:00:18]}  Qc6 {[%clk 0:01:30]} 39. g4 {[%clk 0:00:18]}  Bxc2 {[%clk 0:01:30]} 40. Qg3 {[%clk 0:00:18]}  Be4 {[%clk 0:01:30]} 41. h4 {[%clk 0:00:18]}  Rd5 {[%clk 0:01:30]} 42. Qf4 {[%clk 0:00:18]}  Rd7 {[%clk 0:00:38]} 43. g5 {[%clk 0:00:40]}  f5 {[%clk 0:00:38]} 44. h5 {[%clk 0:00:40]}  gxh5 {[%clk 0:00:38]} 45. Qb8+ {[%clk 0:00:40]}  Kh7 {[%clk 0:00:38]} 46. Qe8 {[%clk 0:00:40]}  Qd6+ {[%clk 0:00:38]} 47. Be5 {[%clk 0:00:40]}  Qg6 {[%clk 0:00:38]} 48. Qxd7 {[%clk 0:00:40]}  Qxg5 {[%clk 0:00:38]} 49. Qxg7+ {[%clk 0:00:40]}  Qxg7 {[%clk 0:00:38]} 50. Bxg7 {[%clk 0:00:40]}  Kxg7 {[%clk 0:00:38]} 51. Kg3 {[%clk 0:00:40]}  b4 {[%clk 0:00:11]} 52. Kh4 {[%clk 0:00:47]}  Kg6 {[%clk 0:00:11]} 53. Rd2 {[%clk 0:00:47]}  f4 {[%clk 0:00:11]} 54. Rd4 {[%clk 0:00:47]}  Kf5 {[%clk 0:00:11]} 55. exf4 {[%clk 0:00:47]}  b3 {[%clk 0:00:11]} 56. Kg3 {[%clk 0:00:47]} 1-0


[Site "http://www.Chess.com"]

[Event "FIDE World Rapid Chess Championship 2021"]
[White "Krasenkow, Michal"]
[Black "Asadli, Vugar"]
[WhiteFideId "1113100"]
[BlackFideId "13405764"]
[WhiteElo "2430"]
[BlackElo "2309"]
[Result "1/2-1/2"]
[Round "07"]
[TimeControl "900+10"]
[Date "2021.12.27"]
[WhiteClock "0:01:05"]
[BlackClock "0:04:36"]

1. d4 {[%clk 0:15:00]}  d5 {[%clk 0:15:00]} 2. c4 {[%clk 0:15:00]}  e6 {[%clk 0:15:00]} 3. Nc3 {[%clk 0:15:00]}  Nf6 {[%clk 0:15:00]} 4. cxd5 {[%clk 0:15:00]}  exd5 {[%clk 0:15:00]} 5. Bg5 {[%clk 0:15:00]}  c6 {[%clk 0:15:00]} 6. e3 {[%clk 0:15:00]}  h6 {[%clk 0:15:00]} 7. Bh4 {[%clk 0:15:00]}  Be7 {[%clk 0:15:00]} 8. Bd3 {[%clk 0:15:00]}  Nbd7 {[%clk 0:15:48]} 9. Qc2 {[%clk 0:16:07]}  O-O {[%clk 0:15:48]} 10. Nge2 {[%clk 0:16:07]}  Re8 {[%clk 0:15:48]} 11. O-O {[%clk 0:16:07]}  Nh5 {[%clk 0:15:48]} 12. Bxe7 {[%clk 0:16:07]}  Qxe7 {[%clk 0:15:48]} 13. Rab1 {[%clk 0:16:07]}  a5 {[%clk 0:15:48]} 14. a3 {[%clk 0:16:07]}  Nb6 {[%clk 0:15:48]} 15. b4 {[%clk 0:16:07]}  axb4 {[%clk 0:15:48]} 16. axb4 {[%clk 0:16:07]}  Bd7 {[%clk 0:15:48]} 17. Nc1 {[%clk 0:16:10]}  Nc4 {[%clk 0:14:54]} 18. Bxc4 {[%clk 0:16:10]}  dxc4 {[%clk 0:14:54]} 19. b5 {[%clk 0:15:26]}  Nf6 {[%clk 0:14:00]} 20. N1e2 {[%clk 0:15:26]}  g6 {[%clk 0:13:19]} 21. Qb2 {[%clk 0:10:35]}  Bf5 {[%clk 0:13:19]} 22. Ra1 {[%clk 0:10:35]}  Bd3 {[%clk 0:13:19]} 23. Rxa8 {[%clk 0:10:17]}  Rxa8 {[%clk 0:10:48]} 24. bxc6 {[%clk 0:10:17]}  bxc6 {[%clk 0:10:48]} 25. Ra1 {[%clk 0:10:17]}  Rxa1+ {[%clk 0:10:48]} 26. Qxa1 {[%clk 0:10:17]}  Qb4 {[%clk 0:10:48]} 27. h3 {[%clk 0:10:17]}  Bxe2 {[%clk 0:11:02]} 28. Nxe2 {[%clk 0:08:36]}  Qd2 {[%clk 0:11:02]} 29. Nc3 {[%clk 0:08:45]}  Qc2 {[%clk 0:09:43]} 30. Qa5 {[%clk 0:08:45]}  Kg7 {[%clk 0:09:43]} 31. g4 {[%clk 0:06:05]}  Qc1+ {[%clk 0:09:00]} 32. Kg2 {[%clk 0:06:05]}  Qd2 {[%clk 0:09:00]} 33. Qa3 {[%clk 0:03:53]}  Qd3 {[%clk 0:08:39]} 34. Qb4 {[%clk 0:03:53]}  h5 {[%clk 0:08:39]} 35. g5 {[%clk 0:03:20]}  Ne4 {[%clk 0:07:04]} 36. Nxe4 {[%clk 0:03:20]}  Qxe4+ {[%clk 0:07:04]} 37. Kg1 {[%clk 0:03:20]}  Qd5 {[%clk 0:07:04]} 38. h4 {[%clk 0:03:20]}  Qe6 {[%clk 0:07:04]} 39. Qc5 {[%clk 0:03:20]}  Qg4+ {[%clk 0:07:04]} 40. Kf1 {[%clk 0:02:41]}  Qxh4 {[%clk 0:06:12]} 41. Qxc6 {[%clk 0:02:41]}  Qh3+ {[%clk 0:06:12]} 42. Ke1 {[%clk 0:02:41]}  Qe6 {[%clk 0:05:48]} 43. d5 {[%clk 0:01:44]}  Qe4 {[%clk 0:05:48]} 44. Qf6+ {[%clk 0:01:44]}  Kg8 {[%clk 0:05:48]} 45. d6 {[%clk 0:01:44]}  Qb1+ {[%clk 0:05:48]} 46. Ke2 {[%clk 0:01:44]}  Qd3+ {[%clk 0:05:48]} 47. Kf3 {[%clk 0:01:44]}  c3 {[%clk 0:05:48]} 48. Qe7 {[%clk 0:01:44]}  Qd5+ {[%clk 0:04:43]} 49. Kg3 {[%clk 0:00:34]}  c2 {[%clk 0:04:43]} 50. d7 {[%clk 0:00:34]}  c1=Q {[%clk 0:04:43]} 51. d8=Q+ {[%clk 0:00:34]}  Qxd8 {[%clk 0:04:43]} 52. Qxd8+ {[%clk 0:00:34]}  Kh7 {[%clk 0:04:43]} 53. Qf6 {[%clk 0:00:34]}  Qg1+ {[%clk 0:04:43]} 54. Kh3 {[%clk 0:00:34]}  Qg4+ {[%clk 0:04:43]} 55. Kh2 {[%clk 0:00:34]}  Qd7 {[%clk 0:04:43]} 56. Kg3 {[%clk 0:00:34]}  Kg8 {[%clk 0:04:43]} 57. f3 {[%clk 0:00:34]}  Qd1 {[%clk 0:04:43]} 58. e4 {[%clk 0:01:05]}  Qg1+ {[%clk 0:04:36]} 59. Kh3 {[%clk 0:01:05]}  Qf1+ {[%clk 0:04:36]} 60. Kg3 {[%clk 0:01:05]}  Qe1+ {[%clk 0:04:36]} 61. Kh3 {[%clk 0:01:05]}  h4 {[%clk 0:04:36]} 62. Qf4 {[%clk 0:01:05]}  Qh1+ {[%clk 0:04:36]} 63. Kg4 {[%clk 0:01:05]}  h3 {[%clk 0:04:36]} 64. Qb8+ {[%clk 0:01:05]}  Kh7 {[%clk 0:04:36]} 65. Qf4 {[%clk 0:01:05]}  Kg8 {[%clk 0:04:36]} 66. Qb8+ {[%clk 0:01:05]} 1/2-1/2


[Site "http://www.Chess.com"]